Cogmind - Beta 11.1 @@@ ROGUE MODE // 2022.06.26 @ 19:58:52 Player: leiavoia Result: Destroyed by Y-64 Sentinel with KE Penetrator Performance ------------- Evolutions (6) 3000 Regions Visited (18) 3600 Robots Destroyed (363) 1815 Value Destroyed (15204) 15204 Prototype IDs (35) 700 Alien Tech Used (0) 0 Bonus (9713) 9713 TOTAL SCORE: 34032 Bonus ------- High Alert Combat Kills 4349 Follower Combat Kills 3224 Network Hubs Disabled 200 Met Imprinter 300 Destroyed Z-Imprinter 1000 Triggered Deep Caves Wall 500 Exposed GOLEM Chamber 500 Built Enhanced Grunts 300 A7 Reached Mainframe 300 Met R17 at Cetus 500 Friendly Fire -1460 Cogmind --------- Core Integrity 0/1150 Matter 115/300 Energy 99/100 System Corruption 52% Temperature Cool (0) Movement Core (50) Location -4/Armory Parts ------- > --- POWER (2) -------- (None) > --- PROPULSION (6) --- (None) > --- UTILITY (8) ------ (None) > --- WEAPON (3) ------- (None) > --- INVENTORY (5) ---- High-capacity Storage Unit Zionite Biocell (600) Long-range Tractor Beam Compact Tesla Bomb Launcher Fusion Bomb Launcher Peak State ------------ > --- POWER ------------ Assembled Flux Generator > --- PROPULSION ------- Centrium Heavy Treads Centrium Heavy Treads Assembled Alloy Leg Assembled Alloy Leg > --- UTILITY ---------- Advanced Cooling System High-capacity Storage Unit Assembled Biocell Array Advanced Sensor Array Centrium Medium Armor Plating Advanced Hardlight Generator GOLEM Unit > --- WEAPON ----------- Neutron Cannon Assembled Focal Cannon Assembled Focal Cannon > --- INVENTORY -------- Medium Treads Armored Leg Enhanced Flexi-carbon Leg Armored Wheel Advanced Heat Sink Huge Storage Unit Zionite Biocell Zionite Biocell Large Matter Pod Improved Terrain Scanner Improved Particle Charger Improved Medium Armor Plating Improved Medium Armor Plating Improved Medium Armor Plating Experimental Thermal Shield Long-range Tractor Beam Magnetic Acceleration Cannon Enhanced Gauss Cannon Heavy Rocket Launcher Shock Maul [Rating: 158] Favorites ----------- Power Heavy Deuterium Engine Engine Heavy Deuterium Engine Power Core Enhanced Nuclear Core Reactor Assembled Flux Generator Propulsion Makeshift Leg Treads Improved Treads Leg Makeshift Leg Wheel Armored Huge Wheel Utility Huge Storage Unit Device GOLEM Unit Storage Huge Storage Unit Processor Enhanced Optical Array Protection Makeshift Armor Plating Weapon Assembled Focal Cannon Energy Gun Cooled Pulse Rifle Energy Cannon Assembled Focal Cannon Ballistic Gun Light Assault Rifle Ballistic Cannon Magnetic Acceleration Cannon Launcher Compact Tesla Bomb Launcher Impact Weapon Shock Maul Slashing Weapon Great Axe Build | -11 -10 -10 -9 -9 -8 -7 -6 -6 -6 -6 -5 -5 -5 -5 -5 -5 -4 -4 ------- Run | Scr Mat Min Mat Sto Mat Fac Fac Low Zio Dee Pro Fac Ext Cet Arc Hub Fac Arm Slots Evolved 12 | . . . 2 . 2 2 2 . . . . 2 . . . . 2 . Power 1 | . . . . . . . . . . . . 1 . . . . . . Propulsion 4 | . . . 1 . . 1 1 . . . . . . . . . 1 . Utility 6 | . . . 1 . 2 1 . . . . . 1 . . . . 1 . Weapon 1 | . . . . . . . 1 . . . . . . . . . . . Parts Attached 373 | 1 11 7 41 12 10 50 43 12 10 33 14 10 10 8 6 3 62 30 Power 20 | . . 2 4 1 . 3 1 1 . 2 2 . . . . . . 4 Engine 12 | . . 2 4 1 . 2 1 1 . 1 . . . . . . . . Core 3 | . . . . . . 1 . . . . . . . . . . . 2 Reactor 5 | . . . . . . . . . . 1 2 . . . . . . 2 Propulsion 76 | . 6 1 13 3 . 9 5 4 . 4 3 4 5 2 . . 10 7 Treads 40 | . 2 1 13 3 . 8 2 . . . . 1 . 2 . . 4 4 Leg 29 | . 4 . . . . . 2 4 . 4 3 . 4 . . . 6 2 Wheel 7 | . . . . . . 1 1 . . . . 3 1 . . . . 1 Hover . | . . . . . . . . . . . . . . . . . . . Flight . | . . . . . . . . . . . . . . . . . . . Utility 159 | 1 3 2 7 2 4 25 15 4 9 16 6 6 . 3 6 2 44 4 Device 86 | 1 . 1 2 1 1 13 12 3 5 5 3 5 . . 5 1 27 1 Storage 14 | . 2 . 1 . 1 1 . . . 1 . 1 . . . 1 4 2 Processor 5 | . . . . . . 2 1 . . . . . . . . . 2 . Hackware . | . . . . . . . . . . . . . . . . . . . Protection 54 | . 1 1 4 1 2 9 2 1 4 10 3 . . 3 1 . 11 1 Artifact . | . . . . . . . . . . . . . . . . . . . Weapon 118 | . 2 2 17 6 6 13 22 3 1 11 3 . 5 3 . 1 8 15 Energy Gun 28 | . 1 . 2 . 2 3 9 . 1 3 1 . . . . . . 6 Energy Cannon 18 | . . . 7 2 2 1 . . . . . . 2 2 . 1 1 . Ballistic Gun 16 | . 1 2 5 . . . 1 1 . 2 . . . . . . 1 3 Ballistic Cannon 20 | . . . 1 2 . 4 4 1 . 2 2 . 1 . . . 3 . Launcher 24 | . . . 2 2 2 3 2 . . 3 . . 2 1 . . 3 4 Special Weapon . | . . . . . . . . . . . . . . . . . . . Impact Weapon 6 | . . . . . . . 2 1 . 1 . . . . . . . 2 Slashing Weapon 6 | . . . . . . 2 4 . . . . . . . . . . . Piercing Weapon . | . . . . . . . . . . . . . . . . . . . Special Melee Weapon . | . . . . . . . . . . . . . . . . . . . Unidentified Prototypes 21 | . . . 2 . 1 2 1 . . 9 . . . 2 . 1 2 1 Corrupted Parts 6 | . . . . . . . . . . . . . . 1 . 1 . 4 System Corruption 32 | . . . . . . . . . . . . . . 4 . 6 . 22 Parts Lost 87 | . . 3 3 . 1 5 9 3 . 3 8 . 3 . . . 17 32 Power 7 | . . . 1 . . . 1 . . . 1 . . . . . . 4 Propulsion 25 | . . 1 1 . . 2 4 2 . 1 2 . 1 . . . 3 8 Utility 27 | . . . 1 . 1 3 2 . . 2 1 . 1 . . . 7 9 Weapon 28 | . . 2 . . . . 2 1 . . 4 . 1 . . . 7 11 Highest Loss Streak 18 | . . 1 2 . 1 5 2 1 . 2 3 . 2 . . . 4 18 To Critical Strikes 1 | . . . . . . . . . . . . . 1 . . . . . Average Slot Usage (%) 90 | . 100 99 99 98 98 93 82 88 93 99 89 87 87 85 72 76 78 49 Engine 5 | . 14 14 10 10 9 4 6 6 6 5 1 . . . . . . . Reactor 1 | . . . . . . . . . . . 4 5 5 5 4 5 4 2 Treads 12 | . 2 28 32 32 27 23 17 . . . . . . 2 11 11 9 8 Leg 14 | . 25 . . . . . . 28 33 33 30 16 27 23 5 5 12 1 Device 9 | . 2 3 10 11 14 12 4 6 7 6 12 17 16 17 19 16 15 6 Storage 9 | . 14 14 11 11 9 7 6 6 6 9 11 11 11 11 11 11 10 8 Processor 4 | . . . . . . 3 13 13 13 6 3 . . . . . 3 3 Protection 9 | . 11 10 11 10 20 18 6 6 6 15 4 5 5 5 2 5 5 3 Energy Gun 4 | . 14 . 1 . 2 2 11 11 11 7 . . . . . . . 5 Energy Cannon 6 | . . . 15 10 6 3 . . . . 14 17 16 16 13 17 11 . Ballistic Gun 4 | . 14 27 3 . . . . . . 3 . . . . . . . . Ballistic Cannon 2 | . . . . 10 9 7 3 4 . 5 3 . . . . . 1 . Naked Turns 26 | . . . . . . . . . . . . . . . . . . 26 Heaviest Build 194 | 13 30 30 41 46 53 130 133 133 124 130 148 149 143 141 145 145 194 148 Greatest Support 225 | 20 40 40 69 69 69 112 99 95 95 107 127 123 135 160 160 160 225 225 Greatest Overweight (x) 8 | . 1 . . . . 4 4 4 1 1 1 5 8 1 . . 4 8 Average Overweight (x) 1 | . . . . . . 2 3 1 1 1 1 4 1 . . . . . Largest Inventory Capacity 25 | 8 15 15 15 15 15 25 25 25 25 25 25 25 20 20 20 20 25 25 Average Capacity 20 | 8 13 15 15 15 15 23 25 25 25 25 25 20 20 20 20 20 20 21 Most Carried 25 | 6 15 15 15 15 15 25 25 25 25 25 25 25 20 20 20 20 20 22 Average Carried 19 | 6 13 14 14 14 14 23 23 24 24 24 24 19 19 19 19 19 18 13 Final Capacity 25 | 8 15 15 15 15 15 25 25 25 25 25 25 20 20 20 20 20 25 5 Final Carried 25 | 6 15 15 15 15 15 21 25 24 24 24 25 20 20 20 20 19 18 5 Class Distribution -------------------- 40% | Mutant 11% | Scavenger-Golem 11% | Derelict-Mutant 9% | Golem 6% | Derelict-Assassin 6% | Scavenger-Mutant 5% | Tank 3% | Commander-Golem Dominant Class ---------------- Mutant | -10/Materials Mutant | -10/Mines Mutant | -9/Materials Mutant | -9/Storage Mutant | -8/Materials Mutant | -7/Factory Mutant | -6/Factory Tank | -6/Lower Caves Derelict-Assassin | -6/Zion Derelict-Mutant | -6/Deep Caves Scavenger-Golem | -5/Proximity Caves Scavenger-Golem | -5/Factory Golem | -5/Extension Golem | -5/Cetus Commander-Golem | -5/Archives Scavenger-Golem | -5/Hub_04(d) Scavenger-Golem | -4/Factory Mutant | -4/Armory Resources | -11 -10 -10 -9 -9 -8 -7 -6 -6 -6 -6 -5 -5 -5 -5 -5 -5 -4 -4 ----------- Run | Scr Mat Min Mat Sto Mat Fac Fac Low Zio Dee Pro Fac Ext Cet Arc Hub Fac Arm Matter Collected 7842 | 217 275 305 661 322 254 1046 1025 195 46 740 752 116 239 145 78 20 1123 283 Remotely 1816 | . . . . . . 268 472 . . 108 230 . . . . . 738 . Salvage Created 17121 | 98 635 652 2600 842 484 885 1368 150 . 706 1130 611 1089 189 360 339 4000 983 Parts 728 | 4 42 39 124 57 22 42 47 4 . 11 42 16 34 4 16 19 157 48 Haulers Intercepted 18 | . 2 . 6 3 2 . 2 . . . . . . . . . 3 . Recyclers Shooed 10 | . . . 2 . . . . . . . . 3 1 . . . 4 . Parts Field Recycled . | . . . . . . . . . . . . . . . . . . . Retrieved Matter . | . . . . . . . . . . . . . . . . . . . Parts Self-Destructed 47 | . . . . . . . . 5 . . 42 . . . . . . . Prevented 2 | . . . . . . . . . . . 2 . . . . . . . Kills | -11 -10 -10 -9 -9 -8 -7 -6 -6 -6 -6 -5 -5 -5 -5 -5 -5 -4 -4 ------- Run | Scr Mat Min Mat Sto Mat Fac Fac Low Zio Dee Pro Fac Ext Cet Arc Hub Fac Arm Combat Hostiles Destroyed 334 | . 9 17 50 18 10 20 25 3 . 51 21 4 14 4 1 6 57 24 Guns 75 | . 9 17 13 . 2 3 17 2 . 1 1 . . . . . . 10 Cannons 148 | . . . 32 14 2 13 1 . . 4 20 4 12 3 1 6 36 . AOE 85 | . . . 4 4 6 3 2 . . 45 . . . . . . 11 10 Classes Destroyed 27 | 2 5 2 4 . 1 3 1 . . 5 1 1 . . . . 1 1 Worker 15 | . 2 . 2 4 . . 5 . . . . . . . . . 2 . Builder 5 | . . 1 . 1 . . . . . . . . 1 . . . 2 . Tunneler 2 | 1 . 1 . . . . . . . . . . . . . . . . Hauler 18 | . 2 . 6 3 2 . 2 . . . . . . . . . 3 . Recycler 12 | 1 . . 2 1 . 1 . . . . . 3 1 . . . 3 . Mechanic 4 | . . . 3 . . . . . . . . . . . . . . 1 Operator 11 | . 1 . . 1 . . . . . . . . . . 8 . . 1 Drone 2 | . . . . . 2 . . . . . . . . . . . . . Watcher 8 | . 2 . 3 2 . . . . . . . . . . . . . 1 Swarmer 54 | . . 3 7 4 . 2 5 . . . 6 3 . 1 . 1 9 13 Saboteur 2 | . . . . . . . . . . . . . . . . . 2 . Grunt 119 | . 9 14 27 6 8 9 14 . . . 2 . 4 1 . . 24 1 Brawler 13 | . . . 4 . . . . . . . 4 . 1 . . . 2 2 Duelist 13 | . . . 2 . . . . . . . 4 . 1 . . . 5 1 Protector 4 | . . . . . . . . . . . 1 . 1 . . 1 1 . Sentry 37 | . . . 10 8 3 3 2 1 . . 2 . 4 . 1 1 2 . Demolisher 4 | . . . . . . . . . . . . . . . . . . 4 Specialist 4 | . . . . . . 3 . . . . . . 1 . . . . . Hunter 17 | . . . . . . . 2 1 . . 3 . . . . 3 8 . Programmer 11 | . . . . . . 1 2 1 . . . . . . . . 4 3 Heavy 2 | . . . . . . 2 . . . . . . . . . . . . Behemoth 3 | . . . . . . . . . . . . 1 2 . . . . . Cetus Guard 2 | . . . . . . . . . . . . . . 2 . . . . Z-Light 3 | . . . . . . . . . . 3 . . . . . . . . Assembler 1 | . . . . . . . . . . 1 . . . . . . . . Assembled 45 | . . . . . . . . . . 45 . . . . . . . . Golem 3 | . . . . . . . . . . 3 . . . . . . . . Thug 1 | . . . . . . . . . . . . 1 . . . . . . Fireman 1 | . . . . . . . . . . 1 . . . . . . . . Best Kill Streak 36 | 2 3 7 10 7 4 2 7 1 . 36 8 4 3 2 5 5 14 11 Combat Bots Only 36 | . 3 7 8 5 4 2 7 1 . 36 8 4 3 2 1 5 14 10 Max Kills in Single Turn 9 | 1 1 1 3 4 3 1 3 1 . 9 1 1 1 1 1 1 3 3 Gunslinging 1 | . . . 1 . . . . . . . . . . . . . . . Exploded 9 | . . . 2 3 3 1 1 . . 9 . . . . . . 3 2 Melee . | . . . . . . . . . . . . . . . . . . . Uniques/NPCs Destroyed 1 | . . . . . . . . . . 1 . . . . . . . . Z-Imprinter (-6/Deep Caves) Combat | -11 -10 -10 -9 -9 -8 -7 -6 -6 -6 -6 -5 -5 -5 -5 -5 -5 -4 -4 -------- Run | Scr Mat Min Mat Sto Mat Fac Fac Low Zio Dee Pro Fac Ext Cet Arc Hub Fac Arm Damage Taken 27811 | . 334 557 1361 655 436 3814 2465 824 . 1431 2075 595 661 156 31 397 6843 5176 Core 2277 | . 76 50 165 73 20 188 176 27 . 62 153 31 29 24 . 36 285 882 Absorbed by Shields 2299 | . . . . . . . . . . . . . 388 143 16 272 1208 272 Reduced by Siege Mode 159 | . . . . . . . . . . . . . . . . . 108 51 Redirected to Shielding 33 | . 2 10 21 . . . . . . . . . . . . . . . Regen/Repaired (Parts) 989 | . . . 152 343 . . . . 494 . . . . . . . . . Core Remaining (%) 70 | 100 . 49 . 40 96 73 . . . . 50 . . . . 88 . . Volleys Fired 947 | 7 42 63 128 53 27 95 87 13 . 57 50 21 47 20 24 15 152 46 Largest 3 | 2 2 2 2 2 2 2 3 3 . 3 3 3 3 3 3 3 3 2 Hottest 260 | 60 60 60 120 99 99 123 171 93 . 113 133 75 140 140 140 75 140 260 Shots Fired 1895 | 14 84 126 255 102 48 179 215 34 . 87 121 35 107 44 42 39 294 69 Gun 662 | 14 84 126 70 . 8 40 170 27 . 40 27 . . . . . 4 52 Cannon 1133 | . . . 179 98 33 134 37 7 . 25 94 35 102 41 42 39 267 . Launcher 100 | . . . 6 4 7 5 8 . . 22 . . 5 3 . . 23 17 Special . | . . . . . . . . . . . . . . . . . . . Kinetic 581 | 7 42 119 53 48 23 99 43 7 . 41 36 . 14 . . . 42 7 Thermal 1124 | 7 22 . 196 50 18 75 164 27 . 8 76 35 88 41 42 39 229 7 Explosive 68 | . . . 6 4 7 5 4 . . 22 . . 5 3 . . 3 9 Electromagnetic 122 | . 20 7 . . . . 4 . . 16 9 . . . . . 20 46 Robot Hit Streak 36 | 6 8 13 15 18 6 24 36 13 . 5 17 15 16 11 8 10 18 6 Robot Miss Streak 7 | 1 2 3 4 2 3 5 7 2 . 4 3 6 2 2 2 1 6 3 Penetration Max . | . . . . . . . . . . . . . . . . . . . Secondary Targets 12 | . . 4 3 . . . 3 . . . . . . . . . . 2 Max Gunslinging Chain 1 | . . 1 1 . . . 1 . . . . . . . . . . 1 Shots Hit Robots 1270 | 10 50 90 173 80 26 113 152 27 . 47 87 25 69 30 28 28 186 49 Core Hits 796 | 4 25 40 89 37 31 37 65 7 . 181 42 9 33 11 17 11 114 43 Critical Kills 4 | . . . 1 . . . . . . . . . 1 1 1 . . . Critical Parts Destroyed 3 | . . . . . . . 1 . . . . . . . . . . 2 Critical Strikes 33 | . . . 4 4 1 3 6 2 . 1 3 . 1 1 1 . 3 3 Burn 8 | . . . 1 . 1 . 4 1 . . 1 . . . . . . . Meltdown 4 | . . . 1 . . . . . . . . . 1 1 1 . . . Blast 17 | . . . 2 4 . 3 1 1 . 1 2 . . . . . 3 . Corrupt 1 | . . . . . . . . . . . . . . . . . . 1 Smash 3 | . . . . . . . 1 . . . . . . . . . . 2 Melee Attacks 88 | . . . . . . 4 23 8 32 1 . . . . . . . 20 Impact 68 | . . . . . . . 7 8 32 1 . . . . . . . 20 Slashing 20 | . . . . . . 4 16 . . . . . . . . . . . Piercing . | . . . . . . . . . . . . . . . . . . . Sneak Attacks . | . . . . . . . . . . . . . . . . . . . Combat Hostiles . | . . . . . . . . . . . . . . . . . . . Follow-up Attacks . | . . . . . . . . . . . . . . . . . . . Damage Inflicted 49469 | 103 593 905 3536 2042 1468 2955 4162 569 . 6901 2823 1560 3285 1700 1340 1289 11539 2699 Guns 7725 | 103 592 905 759 . 119 651 2645 445 . 379 367 . . . . . 14 746 Cannons 25983 | . . . 2354 1625 358 2078 593 124 . 493 2456 1560 2993 1279 1340 1289 7441 . Explosions 15090 | . . . 393 390 991 197 864 . . 6029 . . 268 421 . . 3982 1555 Melee 449 | . . . . . . . 51 . . . . . . . . . . 398 Ramming 222 | . 1 . 30 27 . 29 9 . . . . . 24 . . . 102 . Kinetic 7768 | 36 202 866 732 897 230 1528 711 124 . 579 713 . 300 . . . 722 128 Thermal 26372 | 67 180 . 2381 728 247 1201 2847 445 . 116 1969 1560 2693 1279 1340 1289 7815 215 Explosive 10934 | . . . 393 390 991 197 413 . . 6029 . . 268 421 . . 934 898 Electromagnetic 3724 | . 210 39 . . . . 131 . . 177 141 . . . . . 1966 1060 Impact 449 | . . . . . . . 51 . . . . . . . . . . 398 Slashing . | . . . . . . . . . . . . . . . . . . . Piercing . | . . . . . . . . . . . . . . . . . . . Highest Corruption 52 | . . . 1 1 . 1 6 7 7 3 3 . 2 6 6 6 10 52 Average Corruption 4 | . . . 1 1 . 1 4 6 7 3 3 . 1 2 5 6 7 25 Corruption Purged 6 | . . . . . . . . . . . . . . . 6 . . . Corruption Blocked . | . . . . . . . . . . . . . . . . . . . Effects 245 | . . . 16 7 . 12 35 27 1 3 41 . . 10 5 . 56 32 Message Errors 48 | . . . 3 1 . 2 8 6 1 1 8 . . 2 . . 11 5 Matter Fused 57 | . . . 2 1 . 2 7 9 . . 5 . . 3 2 . 15 11 Heat Flow Errors 26 | . . . 3 2 . . 4 3 . 1 3 . . 2 1 . 4 3 Energy Discharges 33 | . . . 2 1 . 1 4 4 . 1 10 . . . 1 . 4 5 Parts Rejected 3 | . . . . . . . . . . . . . . . . . 2 1 Data Loss (minor) 29 | . . . 2 . . 4 5 2 . . 9 . . 1 . . 4 2 Data Loss (major) 14 | . . . 2 . . 1 3 1 . . 2 . . 1 . . 4 . Misfires 8 | . . . . 1 . 1 1 . . . 2 . . . . . 3 . Alerts 9 | . . . 1 . . . 1 2 . . 1 . . 1 . . 3 . Misdirections 3 | . . . . . . . . . . . . . . . . . . 3 Weapon Failures 15 | . . . 1 1 . 1 2 . . . 1 . . . 1 . 6 2 Overload Shots 18 | . . . . . . 6 8 1 . 2 . . . . . . . 1 Effects 2 | . . . . . . . 2 . . . . . . . . . . . Energy Bleed 1 | . . . . . . . 1 . . . . . . . . . . . Heat Surge 1 | . . . . . . . 1 . . . . . . . . . . . Overflow Damage 1577 | . . . . 3 22 10 189 . . 192 48 200 72 17 60 35 567 162 Projectiles 934 | . . . . . . 10 32 . . 10 48 200 72 17 60 35 450 . Explosions 463 | . . . . 3 22 . 106 . . 182 . . . . . . 106 44 Melee 180 | . . . . . . . 51 . . . . . . . . . 11 118 Knockbacks 65 | . . . 5 4 2 15 9 . . 2 8 . 3 . . . 15 2 Impact 5 | . . . 2 . . . . . . . . . . . . . 1 2 Kinetic 55 | . . . 2 3 2 15 7 . . 2 8 . 2 . . . 14 . Secondary 5 | . . . 1 1 . . 2 . . . . . 1 . . . . . Self-Inflicted Damage 874 | . . . . 25 36 37 51 . . 98 . . 20 . . . 270 337 Shots 26 | . . . . 1 1 1 1 . . 2 . . 1 . . . 12 7 Rammed 13 | . . . 3 4 . 2 1 . . . . . . . . . 3 . Targets Rammed 21 | . 2 . 4 6 . 2 1 . . . . . 2 . . . 4 . Kicked 4 | . 2 . . . . . . . . . . . 2 . . . . . Crushed 4 | . . . 1 2 . . . . . . . . . . . . 1 . Highest Temperature 390 | 40 165 27 325 217 75 389 355 239 . 69 253 . 7 208 152 . 390 202 Average Temperature 71 | 19 47 9 47 40 30 115 121 94 . 15 93 . 7 32 86 . 67 81 Received Heat Transfer 4507 | . 189 312 402 192 225 393 684 96 . 185 291 12 163 20 . 24 1063 256 Effects 7 | . . . . . . 2 3 . . . . . . . . . 2 . Shutdowns 2 | . . . . . . 1 1 . . . . . . . . . . . Energy Bleed 1 | . . . . . . . 1 . . . . . . . . . . . Interference 4 | . . . . . . 1 1 . . . . . . . . . 2 . Siege Activations 3 | . . . . . . . . . . . . . . . . . 2 1 Total Turns 43 | . . . . . . . . . . . . . . . . . 39 4 Longest Duration 26 | . . . . . . . . . . . . . . . . . 26 4 Robots Corrupted 15 | . . . . . . . 1 . . 1 . . . . . . 10 3 Combat Hostiles 15 | . . . . . . . 1 . . 1 . . . . . . 10 3 Parts Fried 24 | . . . . . . . 4 . . . . . . . . . 13 7 Impact Corruptions 6 | . . . . . . . 2 . . . . . . . . . 1 3 Robots Melted 9 | . . . 1 . . 1 2 1 . . . . 2 1 1 . . . Combat Hostiles 8 | . . . 1 . . 1 2 1 . . . . 2 1 . . . . Parts Melted 43 | . . . 8 2 1 3 10 6 . . . 2 6 1 1 1 2 . Heat Transferred 25992 | 150 400 . 5032 1464 555 1952 5255 925 . 222 1361 675 1714 895 810 686 3661 235 Parts Sabotaged . | . . . . . . . . . . . . . . . . . . . Parts Stolen 1 | . . . . . . . . 1 . . . . . . . . . . Parts Stripped . | . . . . . . . . . . . . . . . . . . . Power Chain Reactions 6 | . . . . . . . . . . . . . . . . . 5 1 Missiles Intercepted . | . . . . . . . . . . . . . . . . . . . Alert | -11 -10 -10 -9 -9 -8 -7 -6 -6 -6 -6 -5 -5 -5 -5 -5 -5 -4 -4 ------- Run | Scr Mat Min Mat Sto Mat Fac Fac Low Zio Dee Pro Fac Ext Cet Arc Hub Fac Arm Peak Influence 2042 | 10 203 190 976 1045 803 574 563 . . . . 280 1238 1403 824 632 2042 1440 Initial 985 | . 6 75 . 412 441 277 233 . . . . 49 137 645 481 165 309 985 Average 449 | 6 93 47 454 790 663 300 245 . . . . 122 459 1003 702 541 897 1251 Maximum Alert Level 5 | . 1 . 3 3 3 2 2 . . . . 1 4 4 3 2 5 4 Low Security (%) 36 | 100 99 100 24 . . 23 20 . . . . 75 40 . . 3 . . Level 1 19 | . . . 12 . 5 46 67 . . . . 24 17 . . 15 31 . Level 2 19 | . . . 49 8 44 29 11 . . . . . 5 9 54 80 15 . Level 3 17 | . . . 13 91 49 . . . . . . . 29 46 45 . 17 20 Level 4 5 | . . . . . . . . . . . . . 6 44 . . 13 79 Level 5 2 | . . . . . . . . . . . . . . . . . 22 . High Security . | . . . . . . . . . . . . . . . . . . . Max Security . | . . . . . . . . . . . . . . . . . . . Sterilizations 1 | . . . 1 . . . . . . . . . . . . . . . Squads Dispatched 74 | . 5 . 9 4 4 10 8 . . . 1 2 6 . . 2 19 4 Investigation 18 | . 2 . 6 1 1 2 1 . . . . . 1 . . 2 2 . Extermination 8 | . . . . . . 1 4 . . . . . . . . . 2 1 Reinforcement 20 | . 3 . . 1 2 7 . . . . . 2 2 . . . 3 . Assault 23 | . . . 3 1 1 . . . . . 1 . 3 . . . 11 3 Garrison 5 | . . . . 1 . . 3 . . . . . . . . . 1 . Intercept . | . . . . . . . . . . . . . . . . . . . Searches Triggered . | . . . . . . . . . . . . . . . . . . . Construction Impeded 3 | . . . . . . 1 . . . . . . 2 . . . . . Haulers Reinforced . | . . . . . . . . . . . . . . . . . . . Active Scanning Responses . | . . . . . . . . . . . . . . . . . . . Cargo Convoy Interrupts 1 | . . . . . . 1 . . . . . . . . . . . . Stealth | -11 -10 -10 -9 -9 -8 -7 -6 -6 -6 -6 -5 -5 -5 -5 -5 -5 -4 -4 --------- Run | Scr Mat Min Mat Sto Mat Fac Fac Low Zio Dee Pro Fac Ext Cet Arc Hub Fac Arm Distress Signals 22 | . 2 . 5 . 2 2 2 . . . . . 1 2 . . 5 1 Communications Jammed . | . . . . . . . . . . . . . . . . . . . Distress Signals . | . . . . . . . . . . . . . . . . . . . Times Spotted 565 | . 18 18 69 30 20 33 33 6 . 72 26 6 46 21 13 15 86 53 Peak Tracking Total 30 | . 5 3 6 5 8 5 5 3 . 30 12 5 10 5 2 7 13 14 Tactical Retreats 25 | . 1 . 1 . . 3 3 1 . 3 2 . 3 . . . 4 4 Traps | -11 -10 -10 -9 -9 -8 -7 -6 -6 -6 -6 -5 -5 -5 -5 -5 -5 -4 -4 ------- Run | Scr Mat Min Mat Sto Mat Fac Fac Low Zio Dee Pro Fac Ext Cet Arc Hub Fac Arm Traps Triggered 17 | . . . 2 . . 3 5 . . . . 1 2 . . . 2 2 Indirectly . | . . . . . . . . . . . . . . . . . . . Trap Hack Attempts . | . . . . . . . . . . . . . . . . . . . Triggered . | . . . . . . . . . . . . . . . . . . . Disarmed . | . . . . . . . . . . . . . . . . . . . Reprogrammed . | . . . . . . . . . . . . . . . . . . . Reused . | . . . . . . . . . . . . . . . . . . . Traps Extracted . | . . . . . . . . . . . . . . . . . . . Installed . | . . . . . . . . . . . . . . . . . . . Triggered 1 | . . . . . . 1 . . . . . . . . . . . . Machines | -11 -10 -10 -9 -9 -8 -7 -6 -6 -6 -6 -5 -5 -5 -5 -5 -5 -4 -4 ---------- Run | Scr Mat Min Mat Sto Mat Fac Fac Low Zio Dee Pro Fac Ext Cet Arc Hub Fac Arm Machines Disabled 62 | . . . . 4 2 5 6 1 4 1 . 3 6 1 3 2 18 6 Max in Single Turn 6 | . . . . 3 1 1 6 1 1 1 . 3 1 1 . 1 4 1 Garrison Access 6 | . . . . . . 1 3 . . . . . . . . . 2 . Network Hub 1 | . . . . . . . . . . . . . . . . 1 . . Machines Sabotaged 1 | . . . . . . . . . . . . . . . . 1 . . Garrisons Compromised 1 | . . . . . . 1 . . . . . . . . . . . . Overloaded Fab Kills . | . . . . . . . . . . . . . . . . . . . Hacking | -11 -10 -10 -9 -9 -8 -7 -6 -6 -6 -6 -5 -5 -5 -5 -5 -5 -4 -4 --------- Run | Scr Mat Min Mat Sto Mat Fac Fac Low Zio Dee Pro Fac Ext Cet Arc Hub Fac Arm Machines Accessed 76 | . 7 . 15 9 1 11 5 1 . . . 1 12 1 . 2 4 7 Terminals 53 | . 5 . 11 7 . 7 1 . . . . 1 12 1 . 2 4 2 Fabricators 7 | . . . . . . 2 1 . . . . . . . . . . 4 Repair Stations 4 | . . . 2 1 . 1 . . . . . . . . . . . . Recycling Units 7 | . 2 . 2 1 1 . . . . . . . . . . . . 1 Scanalyzers . | . . . . . . . . . . . . . . . . . . . Garrison Access 4 | . . . . . . 1 3 . . . . . . . . . . . Total Hacks 201 | . 20 . 53 32 2 25 9 1 . . . 2 22 2 . 3 7 23 Successful 79 | . 9 . 26 20 . 4 5 1 . . . 1 7 . . 1 2 3 Failed 121 | . 11 . 26 12 2 21 4 . . . . 1 15 2 . 2 5 20 Catastrophic 35 | . 3 . 2 4 1 7 . . . . . . 6 2 . 1 4 5 Database Lockouts 1 | . . . 1 . . . . . . . . . . . . . . . Manual 81 | . 12 . 16 18 . 13 3 . 1 . . . 1 1 . 2 2 12 Terminals 134 | . 12 . 40 21 . 16 2 . . . . 2 22 2 . 3 7 7 Fabricators 21 | . . . . . . 5 2 . . . . . . . . . . 14 Repair Stations 17 | . . . 7 8 . 2 . . . . . . . . . . . . Recycling Units 21 | . 8 . 6 3 2 . . . . . . . . . . . . 2 Scanalyzers . | . . . . . . . . . . . . . . . . . . . Garrison Access 7 | . . . . . . 2 5 . . . . . . . . . . . Terminal Hacks 39 | . 4 . 17 6 . . . 1 . . . 1 7 . . . 2 1 Part Schematic 1 | . . . . 1 . . . . . . . . . . . . . . Robot Analysis 6 | . 2 . 4 . . . . . . . . . . . . . . . Prototype ID Bank 5 | . 1 . 4 . . . . . . . . . . . . . . . Open Door 9 | . . . . 1 . . . 1 . . . . 7 . . . . . Level Access Points 1 | . . . . . . . . . . . . . . . . . 1 . Branch Access Points 2 | . . . 1 . . . . . . . . . . . . . 1 . Emergency Access Points 1 | . . . . . . . . . . . . . . . . . . 1 Terminal Index 1 | . . . . 1 . . . . . . . . . . . . . . Alert Level 1 | . . . . 1 . . . . . . . . . . . . . . Unreport Threat 2 | . . . 1 1 . . . . . . . . . . . . . . Locate Traps 3 | . 1 . 1 1 . . . . . . . . . . . . . . Patrol Status 1 | . . . 1 . . . . . . . . . . . . . . . Reinforcement Status 1 | . . . 1 . . . . . . . . . . . . . . . Hauler Manifests 1 | . . . . . . . . . . . . 1 . . . . . . Zone Layout 4 | . . . 4 . . . . . . . . . . . . . . . Fabricator Hacks 2 | . . . . . . . 1 . . . . . . . . . . 1 Network Status 1 | . . . . . . . 1 . . . . . . . . . . . Build 1 | . . . . . . . . . . . . . . . . . . 1 Repair Station Hacks 13 | . . . 5 8 . . . . . . . . . . . . . . Scan Component 7 | . . . 3 4 . . . . . . . . . . . . . . Repair 6 | . . . 2 4 . . . . . . . . . . . . . . Recycling Unit Hacks 6 | . 2 . 2 1 . . . . . . . . . . . . . 1 Retrieve Components 6 | . 2 . 2 1 . . . . . . . . . . . . . 1 Scanalyzer . | . . . . . . . . . . . . . . . . . . . Garrison Access Hacks 4 | . . . . . . 1 3 . . . . . . . . . . . Seal Access 4 | . . . . . . 1 3 . . . . . . . . . . . Unauthorized Hacks 15 | . 3 . 2 5 . 3 1 . . . . . . . . 1 . . Terminals 7 | . . . . 4 . 2 . . . . . . . . . 1 . . Botnet 6 | . . . . 4 . 2 . . . . . . . . . . . . Sabotage 1 | . . . . . . . . . . . . . . . . 1 . . Fabricators 2 | . . . . . . 1 1 . . . . . . . . . . . Fabnet 2 | . . . . . . 1 1 . . . . . . . . . . . Repair Stations . | . . . . . . . . . . . . . . . . . . . Recycling Units 6 | . 3 . 2 1 . . . . . . . . . . . . . . Reject 1 | . 1 . . . . . . . . . . . . . . . . . Mask 1 | . 1 . . . . . . . . . . . . . . . . . Tunnel 4 | . 1 . 2 1 . . . . . . . . . . . . . . Scanalyzers . | . . . . . . . . . . . . . . . . . . . Garrison Access . | . . . . . . . . . . . . . . . . . . . Data Cores Recovered . | . . . . . . . . . . . . . . . . . . . Used . | . . . . . . . . . . . . . . . . . . . Hacking Detections 63 | . 7 . 12 8 1 10 4 . . . . 1 9 1 . 1 3 6 Full Trace Events 13 | . 1 . 5 1 1 2 . . . . . . 1 . . 1 1 . Feedback Events 1 | . . . 1 . . . . . . . . . . . . . . . Corruption 1 | . . . 1 . . . . . . . . . . . . . . . Feedback Blocked . | . . . . . . . . . . . . . . . . . . . Robot Schematics Acquired . | . . . . . . . . . . . . . . . . . . . Robots Built . | . . . . . . . . . . . . . . . . . . . Authchips . | . . . . . . . . . . . . . . . . . . . Time . | . . . . . . . . . . . . . . . . . . . Total Robot Build Rating . | . . . . . . . . . . . . . . . . . . . Part Schematics Acquired 1 | . . . . 1 . . . . . . . . . . . . . . Parts Built . | . . . . . . . . . . . . . . . . . . . Authchips . | . . . . . . . . . . . . . . . . . . . Time 117 | . . . . . . . . . . . . . . . . . . 117 Total Part Build Rating . | . . . . . . . . . . . . . . . . . . . Parts Repaired 6 | . . . 2 4 . . . . . . . . . . . . . . Time 199 | . . . 52 147 . . . . . . . . . . . . . . Parts Recycled . | . . . . . . . . . . . . . . . . . . . Recycled Matter . | . . . . . . . . . . . . . . . . . . . Retrieved Matter . | . . . . . . . . . . . . . . . . . . . Retrieved Components 25 | . 4 . 13 8 . . . . . . . . . . . . . . Parts Scanalyzed . | . . . . . . . . . . . . . . . . . . . Part Schematics Acquired . | . . . . . . . . . . . . . . . . . . . Parts Damaged . | . . . . . . . . . . . . . . . . . . . Bothacking | -11 -10 -10 -9 -9 -8 -7 -6 -6 -6 -6 -5 -5 -5 -5 -5 -5 -4 -4 ------------ Run | Scr Mat Min Mat Sto Mat Fac Fac Low Zio Dee Pro Fac Ext Cet Arc Hub Fac Arm Used RIF Installer . | . . . . . . . . . . . . . . . . . . . Robots Hacked 5 | . . . . . . . 1 . . . 2 1 1 . . . . . Non-combat . | . . . . . . . . . . . . . . . . . . . Combat 5 | . . . . . . . 1 . . . 2 1 1 . . . . . Robot Hacks Applied . | . . . . . . . . . . . . . . . . . . . Relay Couplers Released 3 | . . . . . . . . . . . . . . . . . 3 . Machine Destruction 3 | . . . . . . . . . . . . . . . . . 3 . Fabnet Peak Effective % 4 | . . . . . . . 3 3 3 3 4 4 4 4 4 4 1 1 Autooverrided 5 | . . . . . . . 1 . . . 2 1 1 . . . . . Robots Rewired 12 | . . . . . . . . . . . 2 . 10 . . . . . Allies Hacked . | . . . . . . . . . . . . . . . . . . . Hacks Repelled . | . . . . . . . . . . . . . . . . . . . Allies | -11 -10 -10 -9 -9 -8 -7 -6 -6 -6 -6 -5 -5 -5 -5 -5 -5 -4 -4 -------- Run | Scr Mat Min Mat Sto Mat Fac Fac Low Zio Dee Pro Fac Ext Cet Arc Hub Fac Arm Total Allies 54 | . . . . 10 . . 1 . 6 . 4 4 24 5 . . . . Largest Group 17 | . . . . 10 7 . . . 6 6 3 3 17 6 5 5 . . Highest-Rated Group 642 | . . . . 88 63 . . . 302 302 91 93 642 639 480 480 . . Highest-Rated Ally 159 | . . . . 16 16 . . . 96 96 49 41 159 159 96 96 . . Total Orders 16 | . . . . 2 6 . . 8 . . . . . . . . . . STAY 1 | . . . . 1 . . . . . . . . . . . . . . FOLLOW 1 | . . . . 1 . . . . . . . . . . . . . . EXPLORE 11 | . . . . . 5 . . 6 . . . . . . . . . . RETURN 3 | . . . . . 1 . . 2 . . . . . . . . . . Ally Attacks 545 | . . . . 39 68 . 2 . . 80 23 20 190 68 17 38 . . Total Damage 12763 | . . . . 403 562 . 37 . . 1680 762 328 4528 2633 867 963 . . Kills 98 | . . . . 9 8 . . . . 12 4 2 37 16 3 7 . . Allies Corrupted 3 | . . . . . . . . . . . . . 2 . . 1 . . Allies Melted . | . . . . . . . . . . . . . . . . . . . Intel | -11 -10 -10 -9 -9 -8 -7 -6 -6 -6 -6 -5 -5 -5 -5 -5 -5 -4 -4 ------- Run | Scr Mat Min Mat Sto Mat Fac Fac Low Zio Dee Pro Fac Ext Cet Arc Hub Fac Arm Robot Analysis Total 6 | . 2 . 4 . . . . . . . . . . . . . . . Derelict Logs Recovered 3 | . . 2 . . . . . 1 . . . . . . . . . . Drone Launches 32 | . . . . 16 9 . . 7 . . . . . . . . . . Drone Recoveries 16 | . . . . 1 10 . . 5 . . . . . . . . . . Exploration | -11 -10 -10 -9 -9 -8 -7 -6 -6 -6 -6 -5 -5 -5 -5 -5 -5 -4 -4 ------------- Run | Scr Mat Min Mat Sto Mat Fac Fac Low Zio Dee Pro Fac Ext Cet Arc Hub Fac Arm Turns Passed 24447 | 32 1186 2581 2219 990 472 2045 1495 1086 2488 1693 2216 398 1651 420 803 259 1818 595 Spaces Moved 9466 | 10 559 769 1008 383 237 802 646 423 1152 716 519 144 729 179 132 121 623 314 Core 145 | . . . . . . . . . . . . . . . . . . 145 Treads 3663 | . 33 769 1008 383 237 417 16 . . . . . . 41 132 121 377 129 Legs 4296 | 10 526 . . . . . . 309 1152 716 519 7 673 138 . . 246 . Wheels 1362 | . . . . . . 385 630 114 . . . 137 56 . . . . 40 Hover . | . . . . . . . . . . . . . . . . . . . Flight . | . . . . . . . . . . . . . . . . . . . Fastest Speed 50 | 120 120 160 160 160 160 145 145 160 206 198 185 165 132 160 160 160 130 50 Average Speed 177 | 120 168 160 160 160 160 190 161 191 206 205 188 166 181 180 160 160 186 114 Slowest Speed 270 | 120 190 160 160 160 160 242 242 206 206 206 198 186 220 186 160 160 270 240 Overloaded Moves . | . . . . . . . . . . . . . . . . . . . Propulsion Burnouts . | . . . . . . . . . . . . . . . . . . . Robots Hopped . | . . . . . . . . . . . . . . . . . . . Cave-ins Triggered . | . . . . . . . . . . . . . . . . . . . Exploration Rate (%) 57 | 3 92 98 94 71 67 24 24 73 86 79 63 5 85 79 73 20 24 34 Regions Visited 18 Branch Regions 11 Pre-discovered Areas 4 | . 1 . 2 1 . . . . . . . . . . . . . . Known Exits Taken 4 | . . . 1 . . 1 . . . . . 1 . . . . 1 . Unknown Exits Taken 14 | 1 1 1 . 1 1 . 1 1 1 1 1 . 1 1 1 1 . . Scrap Searched 6 | . . 1 . . . . . 2 2 . 1 . . . . . . . Spaces Dug 97 | . . . . . . 23 22 9 . 1 . . 24 . . . 14 4 Terrain Destroyed 852 | . . . 33 61 30 53 57 12 . 95 24 22 80 47 8 7 244 79 Melee 38 | . . . . . . 4 22 8 . . . . . . . . . 4 Projectile 171 | . . . . . 1 20 7 4 . 4 24 5 19 2 8 7 70 . AOE 643 | . . . 33 61 29 29 28 . . 91 . 17 61 45 . . 174 75 Terrain Rammed . | . . . . . . . . . . . . . . . . . . . Walls Destroyed . | . . . . . . . . . . . . . . . . . . . Machines Disabled . | . . . . . . . . . . . . . . . . . . . Actions | -11 -10 -10 -9 -9 -8 -7 -6 -6 -6 -6 -5 -5 -5 -5 -5 -5 -4 -4 --------- Run | Scr Mat Min Mat Sto Mat Fac Fac Low Zio Dee Pro Fac Ext Cet Arc Hub Fac Arm Total 15225 | 17 724 2011 1374 652 281 1142 871 655 1204 850 1667 279 977 242 689 155 998 437 Wait 3689 | . 88 1166 127 186 . 109 36 191 . 11 989 79 37 23 514 10 114 9 Move 9448 | 9 558 768 1007 382 236 801 645 422 1151 715 518 143 728 178 131 120 622 314 Hop . | . . . . . . . . . . . . . . . . . . . Pick Up 181 | . 12 4 25 1 3 24 21 5 4 11 16 8 10 4 1 3 19 10 Fast Attach 86 | 1 2 . 8 5 2 11 6 4 3 12 2 2 3 2 4 . 9 10 Attach 102 | . 1 3 9 . 2 10 10 3 4 7 9 2 1 1 1 1 20 18 Detach 30 | . . . 2 1 1 4 4 . 2 1 4 2 . 1 2 . 4 2 Swap 185 | . 8 4 24 7 6 29 27 5 3 14 3 6 6 5 1 2 33 2 Drop 240 | . 11 3 40 4 4 37 11 4 5 21 22 16 12 8 11 4 21 6 Fire 947 | 7 42 63 128 53 27 95 87 13 . 57 50 21 47 20 24 15 152 46 Melee 88 | . . . . . . 4 23 8 32 1 . . . . . . . 20 Ram 2 | . . . . . . 1 1 . . . . . . . . . . . Kick 4 | . 2 . . . . . . . . . . . 2 . . . . . Crush 15 | . . . 4 6 . 1 . . . . . . . . . . 4 . Escape Stasis 26 | . . . . . . 16 . . . . . . 10 . . . . . Rewire 175 | . . . . . . . . . . . 54 . 121 . . . . . Trap . | . . . . . . . . . . . . . . . . . . . Miscellaneous 7 | . . . . 7 . . . . . . . . . . . . . . Route ------- -11/Scrapyard -10/Materials (discovered 4 exits: *Mat x2 / [*Min x2]) -10/Mines (discovered 2 exits: *Mat x2) -9/Materials (discovered 7 exits: *Mat x3 / *Min x2 / *Sto x2) -9/Storage (discovered 2 exits: *Mat / [*Rec]) -8/Materials (discovered 2 exits: *Fac x2) -7/Factory (discovered 3 exits: *Fac x2 / [*Low]) -6/Factory -6/Lower Caves -6/Zion -6/Deep Caves -5/Proximity Caves -5/Factory (discovered 2 exits: [*Upp] / *Ext) -5/Extension (discovered 2 exits: *Fac / *Cet) -5/Cetus (discovered 2 exits: *Fac / *Arc) -5/Archives (discovered 2 exits: *Fac / *Hub) -5/Hub_04(d) -4/Factory (discovered 7 exits: Res x4 / Upp x2 / *Arm) -4/Armory History --------- Turn | Location | Event 21 | -11/Scrapyard | Discovered new exit (range 3) 33 | -11/Scrapyard | Entered Materials 41 | -10/Materials | Discovered new exit (range 16) 201 | -10/Materials | Discovered new exit (range 12) 274 | -10/Materials | Discovered new exit (range 11) 323 | -10/Materials | Build established: Mutant 519 | -10/Materials | Discovered new exit (range 8) 1219 | -10/Materials | Entered Mines 1236 | -10/Mines | Met a Derelict bent on vengeance 1250 | -10/Mines | Learned Materials security intel 1556 | -10/Mines | Discovered new exit (range 12) 1664 | -10/Mines | Discovered new exit (range 5) 1840 | -10/Mines | Learned Materials security intel 2160 | -10/Mines | Excavation squad dispatched 2160 | -10/Mines | A large section of the Mines collapsed 2410 | -10/Mines | Excavation squad dispatched 2660 | -10/Mines | Excavation squad dispatched 2865 | -10/Mines | Core integrity fell below 50% 2888 | -10/Mines | Destroyed 7 combat bots 3800 | -10/Mines | Entered Materials 3800 | -9/Materials | Evolved 2 slots: Propulsion x1, Utility x1 4037 | -9/Materials | Repaired Lgt. Treads 4153 | -9/Materials | Discovered new exit (range 15) 4377 | -9/Materials | Discovered new exit (range 15) 4401 | -9/Materials | Central database locked down 4509 | -9/Materials | Discovered new exit (range 10) 4783 | -9/Materials | Discovered new exit (range 8) 4961 | -9/Materials | Discovered new exit (range 8) 5218 | -9/Materials | Discovered new exit (range 10) 5274 | -9/Materials | Build established: Scavenger-Mutant 5593 | -9/Materials | Identified exit to Mines 5593 | -9/Materials | Identified exit to Storage 5697 | -9/Materials | Repaired Beam Cannon 5737 | -9/Materials | Discovered new exit (range 16) 5800 | -9/Materials | First assault squad dispatched 5851 | -9/Materials | Build established: Mutant 5916 | -9/Materials | Destroyed 8 combat bots 5938 | -9/Materials | Sterilization system engaged 5938 | -9/Materials | Non-combat units ordered to evacuate 6019 | -9/Materials | Entered Storage 6243 | -9/Storage | Used back door to open Recycling access 6243 | -9/Storage | Discovered new exit (range 5) 6373 | -9/Storage | Core integrity fell below 50% 6509 | -9/Storage | Repaired Imp. Light Cannon 6561 | -9/Storage | Repaired Cld. Ion Engine 6595 | -9/Storage | Repaired Hrd. Light Armor Plating 6628 | -9/Storage | Repaired Imp. Treads 6790 | -9/Storage | Assisted by bots powering up and referring to "LRC-V3" 6819 | -9/Storage | First assault squad dispatched 6888 | -9/Storage | Discovered new exit (range 8) 6895 | -9/Storage | Garrison activated, responded to threat 7009 | -9/Storage | Entered Materials 7009 | -8/Materials | Accompanied by 22 allies 7009 | -8/Materials | Evolved 2 slots: Utility x2 7117 | -8/Materials | Build established: Commander-Mutant 7123 | -8/Materials | Discovered new exit (range 63) 7256 | -8/Materials | Discovered new exit (range 12) 7409 | -8/Materials | First assault squad dispatched 7429 | -8/Materials | Build established: Mutant 7481 | -8/Materials | Entered Factory 7481 | -7/Factory | Evolved 2 slots: Propulsion x1, Utility x1 7608 | -7/Factory | Discovered new exit (range 15) 8563 | -7/Factory | Cargo convoy interrupted 9245 | -7/Factory | Discovered new exit (range 5) 9299 | -7/Factory | Identified exit to Factory 9451 | -7/Factory | Discovered exit to Factory (range 5) 9526 | -7/Factory | Entered another Factory area 9526 | -6/Factory | Evolved 2 slots: Propulsion x1, Weapon x1 9539 | -6/Factory | Lost 5 parts (2n3u) 10163 | -6/Factory | Garrison activated, responded to threat 10274 | -6/Factory | Destroyed 7 combat bots 10791 | -6/Factory | Discovered new exit (range 12) 11021 | -6/Factory | Entered Lower Caves 11104 | -6/Lower Caves | Attracted the attention of an 0b10 checkpoint 11161 | -6/Lower Caves | Encountered a Warlord checkpoint 11544 | -6/Lower Caves | Build established: Tank 11845 | -6/Lower Caves | Spotted B-75 Beast 12087 | -6/Lower Caves | A Derelict revealed a hidden shortcut to a safe place 12107 | -6/Lower Caves | Entered Zion 12169 | -6/Zion | System corruption cleaned by Quarantine Array 12188 | -6/Zion | Learned Factory recycling unit intel 12241 | -6/Zion | Build established: Derelict-Assassin 12262 | -6/Zion | Given A8's code to call for help 12954 | -6/Zion | Found Unknown Piercing Weapon 12964 | -6/Zion | Build established: Derelict-Mutant 13131 | -6/Zion | Gained Derelict followers 13893 | -6/Zion | Visited the Megawrench Repair Shop 13893 | -6/Zion | Megawrench repaired 10 parts 14127 | -6/Zion | Build established: Derelict-Assassin 14453 | -6/Zion | Enhanced Grunt warped into view, answering call for help 14455 | -6/Zion | Enhanced Grunt warped into view, answering call for help 14478 | -6/Zion | Discovered new exit (range 7) 14580 | -6/Zion | Saw the warning signs outside the Deep Caves entrance 14595 | -6/Zion | Entered Deep Caves 14595 | -6/Deep Caves | Accompanied by 6 allies 14883 | -6/Deep Caves | Attacked by Z-Imprinter 14899 | -6/Deep Caves | Allies destroyed Z-Imprinter 14903 | -6/Deep Caves | Build established: Derelict-Mutant 14998 | -6/Deep Caves | Z-Facility disabled 15087 | -6/Deep Caves | Found Prototype Protection 15087 | -6/Deep Caves | Identified Zio. Heavy Carapace 15097 | -6/Deep Caves | Found Prototype Protection 15097 | -6/Deep Caves | Identified Zio. Weapon Casing 15598 | -6/Deep Caves | Discovered new exit (range 6) 15948 | -6/Deep Caves | Spotted as-67730 16027 | -6/Deep Caves | Destroyed as-67730 16070 | -6/Deep Caves | Found Prototype Device 16070 | -6/Deep Caves | Identified Exp. Thermal Shield 16100 | -6/Deep Caves | Triggered Deep Caves wall 16107 | -6/Deep Caves | Exposed GOLEM chamber 16132 | -6/Deep Caves | Found GOLEM Unit 16136 | -6/Deep Caves | Spotted AS-38130 16143 | -6/Deep Caves | Destroyed 36 combat bots 16154 | -6/Deep Caves | Spotted AS-35312 16206 | -6/Deep Caves | Destroyed AS-35312 16231 | -6/Deep Caves | Destroyed 10 combat bots 16288 | -6/Deep Caves | Entered Proximity Caves 16298 | -5/Proximity Caves | Attracted the attention of an 0b10 outpost 16388 | -5/Proximity Caves | Destroyed 8 combat bots 17094 | -5/Proximity Caves | Build established: Golem 17397 | -5/Proximity Caves | Attracted the attention of an 0b10 checkpoint 17590 | -5/Proximity Caves | Lost 3 parts (1n2w) 17840 | -5/Proximity Caves | Build established: Scavenger-Golem 18124 | -5/Proximity Caves | Discovered new exit (range 11) 18504 | -5/Proximity Caves | Entered Factory 18504 | -5/Factory | Evolved 2 slots: Power x1, Utility x1 18505 | -5/Factory | Identified exit to Extension 18506 | -5/Factory | Loaded intel: 6 recycling unit locations 18689 | -5/Factory | Discovered new exit (range 2) 18749 | -5/Factory | Allied Derelicts emerged from ambush trap array 18763 | -5/Factory | Spotted B-75 Beast 18805 | -5/Factory | Destroyed B-75 Beast 18902 | -5/Factory | Entered Extension 18990 | -5/Extension | Rescued a captive Derelict 18992 | -5/Extension | Rescued a captive Derelict 19096 | -5/Extension | Rescued A7 19121 | -5/Extension | Rescued a captive Derelict 19252 | -5/Extension | Rescued a captive Derelict 19299 | -5/Extension | Rescued a captive Derelict 19307 | -5/Extension | Rescued a captive Derelict 19334 | -5/Extension | Rescued a captive Derelict 19348 | -5/Extension | Build established: Golem 19696 | -5/Extension | Spotted B-75 Beast 19701 | -5/Extension | Destroyed B-75 Beast 19710 | -5/Extension | Spotted B-75 Beast 19724 | -5/Extension | Destroyed B-75 Beast 19964 | -5/Extension | Rescued a captive Derelict 19974 | -5/Extension | Rescued a captive Derelict 19975 | -5/Extension | Rescued a captive Derelict 20102 | -5/Extension | First assault squad dispatched 20189 | -5/Extension | Build established: Commander-Golem 20338 | -5/Extension | Rescued a captive Derelict 20399 | -5/Extension | Rescued a captive Derelict 20472 | -5/Extension | Discovered new exit (range 10) 20474 | -5/Extension | Discovered new exit (range 7) 20515 | -5/Extension | Build established: Golem 20553 | -5/Extension | Entered Cetus 20553 | -5/Cetus | Accompanied by 3 allies (A7) 20558 | -5/Cetus | Acquired a Cetus Manufacturing Module code from A7 20579 | -5/Cetus | Spotted Cetus Guard 20579 | -5/Cetus | Spotted Cetus Guard 20589 | -5/Cetus | Spotted Cetus Guard 20589 | -5/Cetus | Spotted Cetus Guard 20590 | -5/Cetus | Allies destroyed Cetus Guard 20590 | -5/Cetus | Allies destroyed Cetus Guard 20599 | -5/Cetus | Destroyed Cetus Guard 20602 | -5/Cetus | Destroyed Cetus Guard 20688 | -5/Cetus | Started Cetus Manufacturing Module 20713 | -5/Cetus | Manufactured an Enhanced Grunt 20738 | -5/Cetus | Manufactured an Enhanced Grunt 20752 | -5/Cetus | Escorted A7 to Cetus Mainframe 20763 | -5/Cetus | Manufactured an Enhanced Grunt 20788 | -5/Cetus | Manufactured an Enhanced Grunt 20804 | -5/Cetus | Discovered new exit (range 15) 20813 | -5/Cetus | Manufactured an Enhanced Grunt 20834 | -5/Cetus | Spotted Cetus Guard 20834 | -5/Cetus | Spotted Cetus Guard 20838 | -5/Cetus | Spotted Cetus Guard 20841 | -5/Cetus | Spotted Cetus Guard 20844 | -5/Cetus | Allies destroyed Cetus Guard 20847 | -5/Cetus | Allies destroyed Cetus Guard 20851 | -5/Cetus | Discovered new exit (range 15) 20852 | -5/Cetus | Allies destroyed Cetus Guard 20858 | -5/Cetus | Extracted ID and sensor layout for unrecognized location from A7's data core 20858 | -5/Cetus | Allies destroyed Cetus Guard 20873 | -5/Cetus | Met Revision 17 20973 | -5/Cetus | Entered Archives 20973 | -5/Archives | Accompanied by 5 allies 21023 | -5/Archives | Unable to access archive contents 21089 | -5/Archives | Build established: Commander-Golem 21094 | -5/Archives | Discovered new exit (range 16) 21134 | -5/Archives | Discovered new exit (range 16) 21776 | -5/Archives | Entered Hub_04(d) 21776 | -5/Hub_04(d) | Accompanied by 5 allies 21786 | -5/Hub_04(d) | Network Hub disabled 21798 | -5/Hub_04(d) | Spotted Lightning 21803 | -5/Hub_04(d) | Spotted Lightning 21807 | -5/Hub_04(d) | Allies destroyed Lightning 21813 | -5/Hub_04(d) | Spotted Lightning 21815 | -5/Hub_04(d) | Allies destroyed Lightning 21824 | -5/Hub_04(d) | Allies destroyed Lightning 22024 | -5/Hub_04(d) | Discovered new exit (range 7) 22035 | -5/Hub_04(d) | Entered Factory 22035 | -4/Factory | Evolved 2 slots: Propulsion x1, Utility x1 22096 | -4/Factory | Build established: Scavenger-Golem 22525 | -4/Factory | Identified exit to Research 22785 | -4/Factory | First assault squad dispatched 22927 | -4/Factory | Destroyed 8 combat bots 23114 | -4/Factory | Found Prototype Launcher 23211 | -4/Factory | Identified Com. Tesla Bomb Launcher 23258 | -4/Factory | Destroyed 14 combat bots 23346 | -4/Factory | Garrison activated, responded to threat 23362 | -4/Factory | Spotted B-86 Titan 23386 | -4/Factory | System corruption reached 10% 23461 | -4/Factory | Lost 4 parts (3n1w) 23503 | -4/Factory | Found Prototype Processor 23569 | -4/Factory | Identified exit to Upper Caves 23569 | -4/Factory | Identified exit to Armory 23646 | -4/Factory | Identified Exp. Signal Interpreter 23664 | -4/Factory | Destroyed 9 combat bots 23664 | -4/Factory | Lost 4 parts (4u) 23853 | -4/Factory | Entered Armory 23876 | -4/Armory | Lost 3 parts (1u2w) 24025 | -4/Armory | Destroyed 10 combat bots 24066 | -4/Armory | Build established: Mutant 24148 | -4/Armory | First assault squad dispatched 24166 | -4/Armory | Destroyed 7 combat bots 24187 | -4/Armory | Core integrity fell below 50% 24206 | -4/Armory | System corruption reached 30% 24217 | -4/Armory | Lost 18 parts (3p5n4u6w) 24279 | -4/Armory | Found Fusion Bomb Launcher 24294 | -4/Armory | Found Fusion Bomb Launcher 24360 | -4/Armory | Found Fusion Bomb Launcher 24368 | -4/Armory | Lost 12 parts (1p3n4u4w) 24386 | -4/Armory | Assembled infested ambush trap array 24424 | -4/Armory | Core integrity fell below 20% 24448 | -4/Armory | Destroyed by Y-64 Sentinel with KE Penetrator Last Messages --------------- 24386_ as-89731 emerges from a hatch in the floor. 24386_ as-40122 emerges from a hatch in the floor. 24386_ ALERT: Infestation has breached Complex 0b10, dispatching Demolisher response squad. 24386_ Slug penetrates L-61 Swordsman. 24392_ System corrupted: Energy discharge (-30). 24402_ Connecting with Terminal... >>Access(Emergency) Found 2 emergency access doors: (107,54) (110,54) Map updated. 24405_ Penetrated by Slug. 24408_ System corrupted: Matter fused (-7). 24420_ C-30 ARC bursts open, deploying its payload. 24420_ B-60 Warrior unfolds itself. 24420_ I-47 Archangel unfolds itself. 24423_ Hvy. Mace destroyed. 24423_ E-15 Imp destroyed. 24440_ Penetrated by Slug. Map ----- +----------------------------------------------------+ | ?????????????????????????????????????????????????? | | ?????????????????????????????????????????????????? | | ?????????????????????????????????????????????????? | | ?????????????????????????????????????????????????? | | ?????????????????????????????????????????????????? | | ?????????????????????????????????????????????????? | | ?????????????????????????????????????????????????? | | ?????????????????????????????????????????????????? | | ??????????????????????????????????????T??????????? | | ?????????????????????????????????????? ?????????? | | ????????????????????????????????## ??? ?????????? | | ????????????????????????????????? ?? ?????????? | | ?????????????????????????????????# """ ????? #??? | | ?????????????????????????????????# """ """ #??? | | ?????????????????????????????????# """ """ #??? | | ?????????????????????????????????# #??? | | ?????????????????????????????????# !] """ #??? | | ?????????????????????????????????? ! """ #??? | | ???????????????????????????????????? """ [????? | | ?????????????????????########????????? ??????? | | ??????????????#??????# ##########+#+#####???? | | ?????????????## ##### #???? | | ?????????H?? ##### | | ????????????? Y | | ???????????????####### ! | | ?????????????????????# @ ######## #+#####+##### | | ?????????????????????########??????# #???? ??? | | ???????????????????????????????????# #?? ? | | ??????????????????????????????????? + | | ???????????????????????????????????### """"" """"" | | ?????????????????????????????????????# """"" """"" | | ?????????????????????????????????????# """"" """"" | | ?????????????????????????????????????#?########### | | | | | | | | | | | | | | | | | | | | | | | | | | | | | | | | | | | +----------------------------------------------------+ Best States ------------- Heat Dissipation 89 Energy Generation 45 Energy Capacity 1700 Matter Stores 300 Matter Capacity 300 Sight Range 22 Robot Scan Range 16 Terrain Scan Range 16 Terrain Scan Density 210 Armor Coverage 825 Resistance: KI 15 Resistance: TH 30 Resistance: EX 15 Resistance: EM 15 Resistance: I 15 Resistance: S 15 Resistance: P 15 Core Shielding 20 Weapon Shielding 100 Evasion (%) 55 Recoil Reduction 6 Particle Charging 20 Item Schematics ----------------- Huge Storage Unit | -9/Storage | Hacked Robot Schematics ------------------ None Fabricated ------------ Nothing Alien Tech Used ----------------- None Achievements -------------- None Challenges ------------ None Game ------ Seed GaussImprovedWheel Manual? 0 Play Time 04:32:15 Cumulative 749.7 hours Start 2022.06.24 @ 04:24:33 End 2022.06.26 @ 19:58:52 Sessions 7 Manual Loads 0 Difficulty Rogue Special Mode None Game No. 182 Rogue 150 Adventurer 31 Explorer 1 Win Type - Total 37 Types 27/0/5/4/0/0/1/0/0 Lore% 84 Gallery% 87 Achievement% 73 Wizard Run 0 Options --------- ASCII 0 Keyboard 0 Movement Arrows Keybinds 0 Fullscreen 1 Font 20/Terminus Map View 66x50 Tactical HUD 1 Map Filters NONE Filters NONE Steam 1 RUN: 6c99ce89-bb35-4443-97e8-8ff00d482f8c